bitfinex/quotes_BTCUSD_20241107
["timestamp","ask_amount","ask_price","bid_price","bid_amount"]
[1730999994935,0.00259021,76229.0,76219.0,0.4216]
[1730999995143,0.19681036,76224.0,76219.0,0.4216]
[1730999996899,0.19681036,76224.0,76219.0,0.4076]
[1730999996900,0.000894,76220.0,76219.0,0.4076]
[1730999997078,0.000894,76220.0,76219.0,0.3936]
[1730999997284,0.000894,76220.0,76219.0,0.4216]
[1730999997507,0.13413502,76220.0,76219.0,0.4216]
[1730999997741,0.13313502,76220.0,76219.0,0.4076]
[1730999998220,0.13313502,76220.0,76219.0,0.4216]
[1730999998437,0.13413502,76220.0,76219.0,0.4076]
[1730999998657,0.13413502,76220.0,76219.0,0.4216]
[1730999998887,0.13413502,76220.0,76219.0,0.4076]
[1730999998888,0.14413502,76220.0,76219.0,0.4076]
[1730999999376,0.14413502,76220.0,76219.0,0.4216]
[1730999999606,0.14913502,76220.0,76219.0,0.4076]
[1731000000311,0.14913502,76220.0,76219.0,0.3936]
[1731000000542,0.14913502,76220.0,76219.0,0.4076]
[1731000001049,0.14913502,76220.0,76219.0,0.3936]
[1731000001269,0.14913502,76220.0,76219.0,0.4076]
[1731000001963,0.14913502,76220.0,76219.0,0.3936]
[1731000002188,0.14913502,76220.0,76219.0,0.4076]
[1731000002635,0.13813502,76220.0,76219.0,0.3936]
[1731000002847,0.14313502,76220.0,76219.0,0.4076]
[1731000003064,0.14313502,76220.0,76219.0,0.4216]
[1731000003332,0.14413502,76220.0,76219.0,0.4216]
[1731000003570,0.14413502,76220.0,76219.0,0.4076]
[1731000003806,0.14413502,76220.0,76219.0,0.4216]
[1731000004021,0.14913502,76220.0,76219.0,0.4216]
[1731000004750,0.37179272,76220.0,76219.0,0.4216]
[1731000005225,0.40651748,76220.0,76219.0,0.40897894]
[1731000005673,0.40651748,76220.0,76185.0,0.09639814]
[1731000005674,0.001,76194.0,76185.0,0.09639814]
[1731000005903,0.13224102,76193.0,76183.0,0.02]
[1731000006116,0.13224102,76193.0,76189.0,0.39375]
[1731000006334,0.13224102,76193.0,76183.0,0.02]
[1731000006335,0.005,76187.0,76183.0,0.02]
[1731000006560,0.13824102,76186.0,76169.0,0.0786]
[1731000006768,0.14324102,76186.0,76169.0,0.17499814]
[1731000007187,0.19681036,76184.0,76170.0,0.39382]
[1731000007402,0.13224102,76183.0,76170.0,0.39382]
[1731000008257,0.001,76179.0,76170.0,0.39382]
[1731000008501,0.13324102,76178.0,76170.0,0.40382]
[1731000008709,0.001,76177.0,76170.0,0.39382]
[1731000008917,0.13224102,76177.0,76170.0,0.39382]
[1731000009127,0.13224102,76177.0,76170.0,0.40382]
[1731000009334,0.13224102,76177.0,76170.0,0.40482]
[1731000009544,0.13224102,76177.0,76171.0,0.00262538]
[1731000010007,0.001,76179.0,76172.0,0.39385]
[1731000010211,0.001,76177.0,76173.0,0.00262517]
[1731000010433,0.19681036,76176.0,76173.0,0.00262517]
[1731000010637,0.001,76179.0,76174.0,0.39384]
[1731000010638,0.19681036,76175.0,76174.0,0.39384]
[1731000010852,0.001,76177.0,76174.0,0.39384]
[1731000011060,0.13424102,76177.0,76174.0,0.39384]
[1731000011273,0.13524102,76177.0,76174.0,0.39384]
[1731000011485,0.001,76175.0,76174.0,0.39384]
[1731000011724,0.13224102,76175.0,76174.0,0.39384]
[1731000011947,0.13324102,76175.0,76174.0,0.39384]
[1731000012198,0.01,76167.0,76153.0,0.09639814]
[1731000012438,0.005,76162.0,76154.0,0.19681036]
[1731000012654,0.005,76160.0,76154.0,0.39391]
[1731000012868,0.13224102,76159.0,76154.0,0.39391]
[1731000013086,0.001,76155.0,76154.0,0.39391]
[1731000013303,0.13224102,76155.0,76154.0,0.39391]
[1731000013980,0.01,76165.0,76154.0,0.39391]
[1731000013981,0.005,76165.0,76154.0,0.39391]
[1731000014193,0.001,76159.0,76155.0,0.00262591]
[1731000014652,0.001,76159.0,76156.0,0.39393]
[1731000014867,0.001,76159.0,76157.0,0.00262589]
[1731000015124,0.001,76159.0,76156.0,0.39393]
[1731000015337,0.001,76159.0,76158.0,0.39392]
[1731000015562,0.006,76165.0,76158.0,0.39392]
[1731000015778,0.13824102,76159.0,76158.0,0.39392]
[1731000015986,0.13924102,76159.0,76158.0,0.39392]
[1731000016200,0.14824102,76159.0,76158.0,0.39392]
[1731000017504,0.14924102,76159.0,76158.0,0.39392]
[1731000017729,0.14824102,76159.0,76158.0,0.39392]
[1731000017995,0.14924102,76159.0,76158.0,0.39392]
[1731000018195,0.15024102,76159.0,76158.0,0.40492]
[1731000018429,0.14924102,76159.0,76158.0,0.39392]
[1731000018657,0.15024102,76159.0,76158.0,0.40492]
[1731000018905,0.14924102,76159.0,76158.0,0.40492]
[1731000019609,0.14824102,76159.0,76158.0,0.39392]
[1731000019825,0.16506512,76159.0,76158.0,0.40592]
[1731000020043,0.15024102,76159.0,76158.0,0.40592]
[1731000020289,0.14924102,76159.0,76158.0,0.40492]
[1731000020501,0.15024102,76159.0,76158.0,0.406754]
[1731000021124,0.14924102,76159.0,76158.0,0.395754]
[1731000021371,0.15024102,76159.0,76158.0,0.406754]
[1731000021639,0.14924102,76159.0,76158.0,0.395754]
[1731000021852,0.14824102,76159.0,76158.0,0.394754]
[1731000022078,0.15024102,76159.0,76158.0,0.403754]
[1731000022351,0.14924102,76159.0,76158.0,0.395754]
[1731000022573,0.14824102,76159.0,76158.0,0.405754]
[1731000022794,0.14924102,76159.0,76158.0,0.406754]
[1731000023468,0.14824102,76159.0,76158.0,0.405754]
[1731000023885,0.14824102,76159.0,76158.0,0.406754]
[1731000024103,0.14824102,76159.0,76158.0,0.395754]
[1731000024528,0.14924102,76159.0,76158.0,0.406754]
[1731000024762,0.005,76141.0,76130.0,0.19681036]
[1731000025003,0.13224102,76141.0,76130.0,0.19681036]
[1731000025227,0.13224102,76141.0,76129.0,0.001668]
[1731000025923,0.13824102,76141.0,76140.0,0.395678]
[1731000026140,0.13324102,76141.0,76140.0,0.406678]
[1731000026558,0.13424102,76141.0,76140.0,0.407678]
[1731000027211,0.13224102,76141.0,76140.0,0.395678]
[1731000027634,0.13324102,76141.0,76140.0,0.395678]
[1731000027854,0.13224102,76141.0,76140.0,0.395678]
[1731000028288,0.13324102,76141.0,76140.0,0.395678]
[1731000028493,0.13924102,76141.0,76140.0,0.395678]
[1731000028710,0.13424102,76141.0,76140.0,0.395678]
[1731000029147,0.14024102,76141.0,76140.0,0.395678]
[1731000029447,0.14424102,76141.0,76140.0,0.395678]
[1731000029660,0.14924102,76141.0,76140.0,0.395678]
[1731000029871,0.15024102,76141.0,76140.0,0.395678]
[1731000030091,0.14924102,76141.0,76140.0,0.395678]
[1731000030312,0.14724102,76141.0,76140.0,0.395678]
[1731000030757,0.001,76141.0,76140.0,0.395678]
[1731000030968,0.01,76147.0,76140.0,0.524178]
[1731000031189,0.13224102,76146.0,76140.0,0.524178]
[1731000031401,0.001,76141.0,76140.0,0.524178]
[1731000031609,0.13424102,76141.0,76140.0,0.524178]
[1731000031819,0.13924102,76141.0,76140.0,0.445578]
[1731000032029,0.13824102,76141.0,76140.0,0.395678]
[1731000032239,0.13724102,76141.0,76140.0,0.395678]
[1731000032443,0.13724102,76141.0,76140.0,0.21831663]
[1731000033273,0.13824102,76141.0,76140.0,0.21831663]
[1731000033691,0.13924102,76141.0,76140.0,0.23031663]
[1731000033906,0.13824102,76141.0,76140.0,0.21831663]
[1731000034130,0.001,76141.0,76140.0,0.21831663]
[1731000034350,0.002,76141.0,76140.0,0.37881663]
[1731000034587,0.01754402,76159.0,76155.0,0.001]
[1731000034805,0.01754402,76159.0,76149.0,0.023]
[1731000035024,0.01754402,76159.0,76148.0,0.1289]
[1731000035025,0.13224102,76157.0,76156.0,0.37280964]
[1731000035449,0.13324102,76157.0,76156.0,0.37280964]
[1731000035707,0.14824102,76157.0,76156.0,0.37280964]
[1731000035913,0.16045673,76157.0,76156.0,0.37280964]
[1731000036364,0.005,76141.0,76140.0,0.012]
[1731000036584,0.001,76140.0,76137.0,0.0816]
[1731000036833,0.13724102,76140.0,76137.0,0.0816]
[1731000037282,0.13724102,76140.0,76134.0,0.0491]
[1731000037494,0.13824102,76140.0,76139.0,0.395496]
[1731000037919,0.13724102,76140.0,76139.0,0.39871314]
[1731000038133,0.15146938,76140.0,76139.0,0.41271314]
[1731000038340,0.14946938,76140.0,76139.0,0.39871314]
[1731000038752,0.14946938,76140.0,76139.0,0.41271314]
[1731000038964,0.13724102,76140.0,76139.0,0.41271314]
[1731000039176,0.15047475,76140.0,76139.0,0.39871314]
[1731000039828,0.16147475,76140.0,76139.0,0.41171314]
[1731000040089,0.38313245,76140.0,76139.0,0.40971314]
[1731000040314,0.38313245,76140.0,76139.0,0.42171314]
[1731000040315,0.41596124,76140.0,76139.0,0.42171314]
[1731000040527,0.41596124,76140.0,76139.0,0.40971314]
[1731000040772,0.41496124,76140.0,76139.0,0.40971314]
[1731000041002,0.18830354,76140.0,76139.0,0.42171314]
[1731000041218,0.19230354,76140.0,76139.0,0.39871314]
[1731000041646,0.19330354,76140.0,76139.0,0.41371314]
[1731000042103,0.19230354,76140.0,76139.0,0.40271314]
[1731000042340,0.1923583,76140.0,76139.0,0.40271314]
[1731000042553,0.415016,76140.0,76139.0,0.38951246]
[1731000042756,0.415016,76140.0,76139.0,0.38551246]
[1731000042980,0.415016,76140.0,76124.0,0.001486]
[1731000042981,0.015,76130.0,76124.0,0.001486]
[1731000043196,0.515016,76130.0,76129.0,0.00470763]
[1731000043418,0.016,76127.0,76126.0,0.00155363]
[1731000043647,0.3226577,76130.0,76129.0,0.27807]
[1731000043867,0.38636546,76130.0,76119.0,0.001486]
[1731000044087,0.19681036,76127.0,76112.0,0.001486]
[1731000044299,0.0636766,76126.0,76112.0,0.001486]
[1731000044529,0.3226577,76130.0,76112.0,0.001486]
[1731000044530,0.2226577,76121.0,76112.0,0.001486]
[1731000044808,0.04407412,76120.0,76113.0,0.39412]
[1731000045033,0.04407412,76120.0,76114.0,0.00273419]
[1731000045252,0.13224102,76115.0,76114.0,0.00273419]
[1731000045460,0.2226577,76121.0,76115.0,0.26189898]
[1731000045674,0.19681036,76117.0,76115.0,0.26189898]
[1731000045894,0.14403649,76120.0,76116.0,0.00275543]
[1731000045895,0.1,76120.0,76116.0,0.00275543]
[1731000046355,0.04403665,76119.0,76116.0,0.00275543]
[1731000046571,0.13224102,76117.0,76116.0,0.00275543]
[1731000046791,0.17627767,76117.0,76116.0,0.00275543]
[1731000047223,0.15670582,76117.0,76116.0,0.00475543]
[1731000047444,0.14447342,76117.0,76116.0,0.00275543]
[1731000047877,0.14447342,76117.0,76116.0,0.00575543]
[1731000048092,0.13224102,76117.0,76116.0,0.57714543]
[1731000048301,0.14445617,76117.0,76116.0,0.57914543]
[1731000048506,0.14445617,76117.0,76116.0,0.58214543]
[1731000048770,0.14445617,76117.0,76116.0,0.58014543]
[1731000049189,0.14545617,76117.0,76116.0,0.58714543]
[1731000049398,0.13324102,76117.0,76116.0,0.58714543]
[1731000049607,0.13224102,76117.0,76116.0,0.58014543]
[1731000049817,0.13224102,76117.0,76116.0,0.57914543]
[1731000050047,0.13324102,76117.0,76116.0,0.58714543]
[1731000050262,0.14545345,76117.0,76116.0,0.58714543]
[1731000050897,0.14445345,76117.0,76116.0,0.57914543]
[1731000051151,0.14445345,76117.0,76116.0,0.57714543]
[1731000051367,0.14445345,76117.0,76116.0,0.58214543]
[1731000051575,0.14445345,76117.0,76116.0,0.57493812]
[1731000051782,0.17851301,76117.0,76116.0,0.57493812]
[1731000051996,0.17851301,76117.0,76116.0,0.57293812]
[1731000052212,0.19805156,76117.0,76116.0,0.57293812]
[1731000052462,0.21126081,76117.0,76116.0,0.58193812]
[1731000052684,0.19905156,76117.0,76116.0,0.58193812]
[1731000052897,0.21126085,76117.0,76116.0,0.58293812]
[1731000053106,0.21026085,76117.0,76116.0,0.56993812]
[1731000053311,0.19805156,76117.0,76116.0,0.56993812]
[1731000053520,1.19805156,76117.0,76116.0,0.57293812]
[1731000053739,1.19805156,76117.0,76116.0,0.56993812]
[1731000054175,1.19905156,76117.0,76116.0,0.58093812]
[1731000054397,1.19905156,76117.0,76116.0,0.57893812]
[1731000054622,1.19905156,76117.0,76116.0,0.57293812]
[1731000054623,1.163992,76117.0,76116.0,0.57293812]
[1731000055072,1.14445345,76117.0,76116.0,0.57493812]
[1731000055315,0.99445345,76117.0,76116.0,0.57493812]
[1731000055528,0.99445345,76117.0,76116.0,0.62253812]
[1731000055770,1.12669447,76117.0,76116.0,0.57493812]
[1731000056912,1.11669447,76117.0,76116.0,0.57193812]
[1731000057139,1.11669447,76117.0,76116.0,0.56993812]
[1731000057358,1.11869447,76117.0,76116.0,0.58493812]
[1731000057576,1.11769447,76117.0,76116.0,0.57893812]
[1731000057998,1.11669447,76117.0,76116.0,0.57193812]
[1731000058213,1.11669447,76117.0,76116.0,0.57293812]
[1731000059279,1.15103674,76117.0,76116.0,0.57293812]
[1731000060465,1.17056404,76117.0,76116.0,0.57293812]
[1731000060699,1.11669447,76117.0,76116.0,0.57293812]
[1731000062047,0.98445345,76117.0,76116.0,0.64953812]
[1731000063108,0.98445345,76117.0,76116.0,0.64853812]
[1731000063319,0.98445345,76117.0,76116.0,0.64653812]
[1731000063539,0.98645345,76117.0,76116.0,0.66853812]
[1731000063945,0.98545345,76117.0,76116.0,0.66053812]
[1731000064170,0.001,76117.0,76116.0,0.66053812]
[1731000064380,0.001,76117.0,76116.0,0.65953812]
[1731000064802,0.001668,76120.0,76116.0,0.64653812]
[1731000065018,0.13390902,76120.0,76116.0,0.64653812]
[1731000065254,0.001,76117.0,76116.0,0.65853812]
[1731000065481,0.001668,76120.0,76117.0,0.39312]
[1731000065696,0.001668,76120.0,76118.0,0.00262718]
[1731000065913,0.19681036,76131.0,76118.0,0.00262718]
[1731000065914,0.19681036,76131.0,76121.0,0.1247]
[1731000066134,0.19681036,76131.0,76123.0,0.0795]
[1731000066359,0.19681036,76131.0,76125.0,0.0795]
[1731000066872,0.19681036,76139.0,76126.0,0.97928638]
[1731000067328,0.19681036,76139.0,76127.0,0.1264]
[1731000067582,0.001,76131.0,76129.0,0.0766]
[1731000067835,0.001,76131.0,76129.0,0.1264]
[1731000068091,0.19681036,76138.0,76130.0,0.97924614]
[1731000068794,0.001,76139.0,76130.0,0.97924614]
[1731000069021,0.19681036,76138.0,76130.0,0.97924614]
[1731000069960,0.001,76131.0,76130.0,0.97924614]
[1731000070412,0.13224102,76131.0,76130.0,0.97924614]
[1731000070655,0.13224102,76131.0,76130.0,1.00724614]
[1731000070905,0.13224102,76131.0,76130.0,0.99324614]
[1731000071337,0.13224102,76131.0,76130.0,1.00724614]
[1731000071555,0.13324102,76131.0,76130.0,1.00724614]
[1731000072526,0.13224102,76131.0,76130.0,0.99324614]
[1731000072972,0.13324102,76131.0,76130.0,0.99324614]
[1731000073663,0.13324102,76131.0,76130.0,1.00724614]
[1731000074767,0.13324102,76131.0,76130.0,0.99324614]
[1731000075440,0.2516623,76131.0,76130.0,0.014]
[1731000075704,0.001,76125.0,76113.0,0.000834]
[1731000075917,0.1,76113.0,76108.0,0.001486]
[1731000076148,0.13224102,76111.0,76108.0,0.001486]
[1731000077229,0.13224102,76111.0,76110.0,0.003486]
[1731000077465,0.23224102,76111.0,76110.0,0.002486]
[1731000077701,0.1,76110.0,76108.0,0.001486]
[1731000077932,0.13224102,76109.0,76108.0,0.001486]
[1731000078178,0.007,76111.0,76109.0,0.16192898]
[1731000078649,0.13224102,76110.0,76109.0,0.16192898]
[1731000079311,0.18821193,76110.0,76109.0,0.16192898]
[1731000079567,0.13224102,76110.0,76109.0,0.16192898]
[1731000079831,0.13224102,76110.0,76109.0,0.08933509]
[1731000079832,0.16524102,76110.0,76109.0,0.08933509]
[1731000080048,0.16524102,76110.0,76095.0,0.001486]
[1731000080049,0.001,76103.0,76095.0,0.001486]
[1731000080268,0.35489872,76096.0,76095.0,0.001486]
[1731000080490,0.47989872,76096.0,76095.0,0.001486]
[1731000080715,0.47989872,76096.0,76071.0,0.083]
[1731000080716,0.1,76095.0,76080.0,0.19681036]
[1731000080954,0.023,76109.0,76071.0,0.083]
[1731000080955,0.13224102,76094.0,76071.0,0.083]
[1731000081417,0.13224102,76092.0,76071.0,0.083]
[1731000082610,0.001,76088.0,76071.0,0.0004]
[1731000082839,0.13224102,76075.0,76071.0,0.0004]
[1731000083323,0.13224102,76072.0,76071.0,0.0004]
[1731000083580,0.35489872,76072.0,76071.0,0.0004]
[1731000084073,0.35489872,76072.0,76071.0,0.39477]
[1731000084317,0.35489872,76072.0,76071.0,0.00235699]
[1731000084318,0.45489872,76072.0,76071.0,0.00235699]
[1731000084552,0.45489872,76072.0,76071.0,0.39672699]
[1731000084782,0.45489872,76072.0,76071.0,0.39437]
[1731000085041,0.45489872,76072.0,76071.0,0.39681253]
[1731000085725,0.45689872,76072.0,76071.0,0.39681253]
[1731000086198,0.47789872,76072.0,76071.0,0.39681253]
[1731000086679,0.48289872,76072.0,76071.0,0.36029097]
[1731000086900,0.48389872,76072.0,76071.0,0.36029097]
[1731000087120,0.47889872,76072.0,76071.0,0.36029097]
[1731000087398,0.24224102,76072.0,76071.0,0.36029097]
[1731000087864,0.15624102,76072.0,76071.0,0.36029097]
[1731000088099,0.14224102,76072.0,76071.0,0.36029097]
[1731000088332,0.14524102,76072.0,76071.0,0.36029097]
[1731000088560,0.13524102,76072.0,76071.0,0.36029097]
[1731000088783,0.14576512,76072.0,76071.0,0.36029097]
[1731000089053,0.24124102,76072.0,76071.0,0.36029097]
[1731000089510,0.25724102,76072.0,76071.0,0.34114397]
[1731000089734,0.23424102,76072.0,76071.0,0.34114397]
[1731000089961,0.23324102,76072.0,76071.0,0.34360116]
[1731000090421,0.23424102,76072.0,76071.0,0.34360116]
[1731000090639,0.23324102,76072.0,76071.0,0.34360116]
[1731000090854,0.23324102,76072.0,76071.0,0.34337981]
[1731000091114,0.23324102,76072.0,76071.0,0.34537981]
[1731000091303,0.23324102,76072.0,76071.0,0.34337981]
[1731000091534,0.23324102,76072.0,76071.0,0.34437981]
[1731000091765,0.24624102,76072.0,76071.0,0.34521381]
[1731000091995,0.26024102,76072.0,76071.0,0.34521381]
[1731000092238,0.28324102,76072.0,76071.0,0.34521381]
[1731000092467,0.28324102,76072.0,76071.0,0.34275662]
[1731000092694,0.27024102,76072.0,76071.0,0.34521795]
[1731000092909,0.34407097,76072.0,76071.0,0.34521795]
[1731000093131,0.28424102,76072.0,76071.0,0.34521795]
[1731000093565,0.24724102,76072.0,76071.0,0.34521795]
[1731000093793,0.23324102,76072.0,76071.0,0.34421795]
[1731000094009,0.24724102,76072.0,76071.0,0.34521795]
[1731000094258,0.24624102,76072.0,76071.0,0.34521795]
[1731000094477,0.23224102,76072.0,76071.0,0.34421795]
[1731000094711,0.23224102,76072.0,76071.0,0.34521795]
[1731000094712,0.24624102,76072.0,76071.0,0.34521795]
[1731000094944,0.26024102,76072.0,76071.0,0.34421795]
[1731000095474,0.26024102,76072.0,76071.0,0.34521795]
[1731000095686,0.26024102,76072.0,76071.0,0.34421795]
[1731000096180,0.24624102,76072.0,76071.0,0.34421795]
[1731000096423,0.26024102,76072.0,76071.0,0.34421795]
[1731000096678,0.26024102,76072.0,76071.0,0.34175662]
[1731000096920,0.30372417,76072.0,76071.0,0.34628707]
[1731000097156,0.26024102,76072.0,76071.0,0.34528707]
[1731000097844,0.24624102,76072.0,76071.0,0.34528707]
[1731000101970,0.24624102,76072.0,76071.0,0.34175662]
[1731000102440,0.46889872,76072.0,76071.0,0.34528691]
[1731000102911,0.24624102,76072.0,76071.0,0.34528691]
[1731000103128,0.24791102,76072.0,76071.0,0.34528691]
[1731000103363,0.23391102,76072.0,76071.0,0.34528691]
[1731000103825,0.24791102,76072.0,76071.0,0.34628691]
[1731000104286,0.23391102,76072.0,76071.0,0.34528691]
[1731000104505,0.24091102,76072.0,76071.0,0.34628691]
[1731000104725,0.25491102,76072.0,76071.0,0.34628691]
[1731000105427,0.24091102,76072.0,76071.0,0.34628691]
[1731000105678,0.14991102,76072.0,76071.0,0.34628691]
[1731000105915,0.01767,76072.0,76071.0,0.42778691]
[1731000106154,0.01767,76072.0,76071.0,0.47568691]
[1731000106901,0.19681036,76086.0,76071.0,0.47468691]
[1731000107118,0.19681036,76078.0,76074.0,0.1243]
[1731000107555,0.13224102,76085.0,76075.0,0.45129469]
[1731000107785,0.13224102,76085.0,76076.0,0.0829]
[1731000108262,0.13224102,76085.0,76077.0,0.45127317]
[1731000108723,0.13224102,76085.0,76077.0,0.44827317]
[1731000108933,0.13324102,76085.0,76077.0,0.44827317]
[1731000109363,0.13224102,76085.0,76077.0,0.44827317]
[1731000109596,0.13324102,76085.0,76077.0,0.45027317]
[1731000110495,0.13424102,76085.0,76077.0,0.45027317]
[1731000110717,0.13324102,76085.0,76077.0,0.45027317]
[1731000111196,0.13324102,76085.0,76077.0,0.45727317]
[1731000111433,0.13324102,76085.0,76077.0,0.45027317]
[1731000111650,0.13524102,76085.0,76077.0,0.45827317]
[1731000111884,0.13424102,76085.0,76077.0,0.45627317]
[1731000112349,0.13524102,76085.0,76077.0,0.45827317]
[1731000112794,0.19681036,76084.0,76077.0,0.45827317]
[1731000113007,0.13224102,76084.0,76077.0,0.45827317]
[1731000113256,0.003,76085.0,76077.0,0.45827317]
[1731000113486,0.003,76085.0,76078.0,0.1254]
[1731000113729,0.003,76085.0,76078.0,0.40542759]
[1731000113956,0.19681036,76094.0,76084.0,0.047]
[1731000114223,0.19681036,76086.0,76085.0,0.0784]
[1731000114467,0.19681036,76094.0,76085.0,0.92692906]
[1731000114713,0.19681036,76094.0,76086.0,0.1248]
[1731000114945,0.19681036,76102.0,76087.0,0.47189]
[1731000115169,0.19681036,76102.0,76090.0,0.0776]
[1731000115170,0.001,76094.0,76090.0,0.0776]
[1731000115386,0.001,76094.0,76093.0,0.0772]
[1731000115619,0.19681036,76102.0,76097.0,0.0472]
[1731000115989,0.19681036,76102.0,76098.0,0.84835746]
[1731000116392,0.03479974,76109.0,76098.0,0.84835746]
[1731000116620,0.19681036,76105.0,76098.0,0.84835746]
[1731000116831,0.13224102,76108.0,76098.0,0.84835746]
[1731000117273,0.19681036,76129.0,76099.0,0.3497577]
[1731000117274,0.19681036,76120.0,76099.0,0.3497577]
[1731000117488,0.19681036,76120.0,76103.0,0.005]
[1731000117489,0.19681036,76112.0,76103.0,0.005]
[1731000117701,0.19681036,76112.0,76105.0,0.0491]
[1731000117917,0.13224102,76111.0,76106.0,0.39419]
[1731000118132,0.13224102,76111.0,76106.0,0.84820237]
[1731000118585,0.19681036,76109.0,76106.0,0.84820237]
[1731000118788,0.13224102,76108.0,76106.0,0.84820237]
[1731000121045,0.13224102,76108.0,76106.0,0.86020237]
[1731000121281,0.13224102,76108.0,76106.0,0.85320237]
[1731000121487,0.13224102,76108.0,76106.0,0.85820237]
[1731000121708,0.19681036,76107.0,76106.0,0.85320237]
[1731000121962,0.13224102,76107.0,76106.0,0.85320237]
[1731000122212,0.13224102,76107.0,76106.0,0.85314237]
[1731000122450,0.13224102,76107.0,76106.0,0.85614237]
[1731000122685,0.40122937,76107.0,76106.0,0.85614237]
[1731000122886,0.27184177,76107.0,76106.0,0.8294942]
[1731000123337,0.23224102,76107.0,76106.0,0.8294942]
[1731000123791,0.25624102,76107.0,76106.0,0.8214942]
[1731000124004,0.26224102,76107.0,76106.0,0.8214942]
[1731000124256,0.26124102,76107.0,76106.0,0.8214942]
[1731000124458,0.23224102,76107.0,76106.0,0.8214942]
[1731000124883,0.23924102,76107.0,76106.0,0.8234942]
[1731000125328,0.47284273,76107.0,76106.0,0.8214942]
[1731000125573,0.47284273,76107.0,76106.0,0.45501237]
[1731000125783,0.47984273,76107.0,76106.0,0.45601237]
[1731000126005,0.28281562,76107.0,76106.0,0.45601237]
[1731000126254,0.15981562,76107.0,76106.0,0.4553723]
[1731000126488,0.15981562,76107.0,76106.0,0.4562073]
[1731000126723,0.14091102,76107.0,76106.0,0.5037073]
[1731000126935,0.14091102,76107.0,76106.0,0.5027073]
[1731000126936,0.13391102,76107.0,76106.0,0.5027073]
[1731000127147,0.00867,76107.0,76106.0,0.5037073]
[1731000127390,0.00867,76107.0,76106.0,0.5027073]
[1731000127604,0.00167,76107.0,76106.0,0.5017073]
[1731000127817,0.00267,76107.0,76106.0,0.5027073]
[1731000128069,0.00867,76107.0,76106.0,0.5027073]
[1731000128265,0.00867,76107.0,76106.0,0.5097073]
[1731000128477,0.00167,76107.0,76106.0,0.5087073]
[1731000128687,0.00167,76107.0,76106.0,0.5017073]
[1731000128913,0.00167,76107.0,76106.0,0.5057073]
[1731000129135,0.00167,76107.0,76106.0,0.5017073]
[1731000129395,0.00167,76107.0,76106.0,0.5037073]
[1731000129610,0.13391102,76107.0,76106.0,0.5037073]
[1731000130511,0.13391102,76107.0,76106.0,0.5077073]
[1731000130722,0.13391102,76107.0,76106.0,0.5107073]
[1731000130943,0.25230672,76107.0,76106.0,0.4572073]
[1731000131196,0.25230672,76107.0,76106.0,0.4552073]
[1731000131385,0.23391102,76107.0,76106.0,0.4552073]
[1731000131602,0.26960758,76107.0,76106.0,0.4552073]
[1731000132029,0.26860758,76107.0,76106.0,0.4542073]
[1731000132455,0.27460758,76107.0,76106.0,0.4562073]
[1731000132923,0.27460758,76107.0,76106.0,0.4121473]
[1731000133192,0.27560758,76107.0,76106.0,0.4121473]
[1731000133420,0.29860758,76107.0,76106.0,0.4121473]
[1731000133642,0.34992695,76107.0,76106.0,0.4101473]
[1731000134060,0.35692695,76107.0,76106.0,0.4121473]
[1731000134262,0.35792695,76107.0,76106.0,0.4121473]
[1731000134473,0.35592695,76107.0,76106.0,0.4111473]
[1731000134695,0.29260758,76107.0,76106.0,0.4101473]
[1731000134927,0.29960758,76107.0,76106.0,0.4111473]
[1731000135153,0.29860758,76107.0,76106.0,0.4121473]
[1731000135362,0.26860758,76107.0,76106.0,0.4101473]
[1731000135577,0.13391102,76107.0,76106.0,0.4101473]
[1731000135788,0.13991102,76107.0,76106.0,0.4111473]
[1731000136852,0.14091102,76107.0,76106.0,0.4111473]
[1731000137106,0.13391102,76107.0,76106.0,0.4101473]
[1731000137310,0.13991102,76107.0,76106.0,0.4151473]
[1731000137743,0.13391102,76107.0,76106.0,0.4101473]
[1731000137960,0.13391102,76107.0,76106.0,0.4111473]
[1731000138169,0.13491102,76107.0,76106.0,0.4111473]
[1731000138877,0.13391102,76107.0,76106.0,0.4111473]
[1731000139946,0.13391102,76107.0,76106.0,0.4101473]
[1731000140155,0.13391102,76107.0,76106.0,0.4111473]
[1731000140372,0.15579876,76107.0,76106.0,0.4111473]
[1731000140592,0.23391102,76107.0,76106.0,0.4101473]
[1731000140827,0.23491102,76107.0,76106.0,0.4101473]
[1731000141042,0.23591102,76107.0,76106.0,0.4101473]
[1731000141464,0.23491102,76107.0,76106.0,0.4101473]
[1731000141681,0.23691102,76107.0,76106.0,0.4101473]
[1731000142321,0.23391102,76107.0,76106.0,0.4101473]
[1731000142543,0.23791102,76107.0,76106.0,0.4101473]
[1731000143670,0.23891102,76107.0,76106.0,0.4101473]
[1731000145587,0.23891102,76107.0,76106.0,0.40678737]
[1731000145999,0.23891102,76107.0,76106.0,0.40975977]
[1731000146209,0.23991102,76107.0,76106.0,0.40975977]
[1731000146627,0.23891102,76107.0,76106.0,0.40975977]
[1731000146829,0.23791102,76107.0,76106.0,0.40975977]
[1731000147098,0.23391102,76107.0,76106.0,0.40975977]
[1731000147330,0.24091102,76107.0,76106.0,0.41175977]
[1731000147669,0.24091102,76107.0,76106.0,0.40778737]
[1731000147670,0.23991102,76107.0,76106.0,0.40778737]
[1731000147870,0.13491102,76107.0,76106.0,0.41075977]
[1731000148075,0.13491102,76107.0,76106.0,0.53095977]
[1731000148286,0.14091102,76107.0,76106.0,0.53195977]
[1731000151368,0.13491102,76107.0,76106.0,0.53095977]
[1731000151579,0.13591102,76107.0,76106.0,0.53095977]
[1731000151789,0.13491102,76107.0,76106.0,0.52995977]
[1731000152005,0.13391102,76107.0,76106.0,0.53095977]
[1731000152463,0.13391102,76107.0,76106.0,0.53195977]
[1731000153322,0.19681036,76119.0,76112.0,0.0816]
[1731000153540,0.13224102,76118.0,76113.0,0.0491]
[1731000153770,0.13224102,76118.0,76113.0,0.05206138]
[1731000153979,0.13224102,76118.0,76113.0,0.54735138]
[1731000154197,0.12224102,76118.0,76113.0,0.54735138]
[1731000155279,0.12224102,76118.0,76113.0,0.55235138]
[1731000155492,0.12224102,76118.0,76113.0,0.55335138]
[1731000157415,0.29681036,76138.0,76117.0,0.005]
[1731000157655,0.29681036,76138.0,76119.0,0.005]
[1731000157842,0.29681036,76138.0,76124.0,0.01]
[1731000157843,0.19681036,76138.0,76124.0,0.01]
[1731000158097,0.19681036,76138.0,76124.0,0.0569]
[1731000158307,0.19681036,76138.0,76124.0,0.55505993]
[1731000158717,0.19681036,76138.0,76124.0,0.56005993]
[1731000158976,0.002668,76125.0,76124.0,0.56005993]
[1731000159185,0.001778,76125.0,76124.0,0.56005993]